bitfinex/quotes_SOLUSD_20250626
["timestamp","ask_amount","ask_price","bid_price","bid_amount"]
[1750900900658,5.65895575,143.77,143.72,52.66860461]
[1750900900964,5.65895575,143.77,143.73,6.95748973]
[1750900901163,5.65895575,143.76,143.73,6.95748973]
[1750900905169,188.50583995,143.79,143.73,6.95748973]
[1750900905374,5.65895575,143.76,143.73,6.95748973]
[1750900906361,5.65895575,143.74,143.73,6.95748973]
[1750900906974,5.186466,143.76,143.73,6.95748973]
[1750900907275,5.65895575,143.75,143.73,6.95748973]
[1750900910465,10.8445656,143.76,143.73,6.95748973]
[1750900910672,5.65895575,143.76,143.73,6.95748973]
[1750900910866,5.65895575,143.77,143.73,6.95748973]
[1750900911070,5.18559394,143.76,143.73,6.95748973]
[1750900911284,5.65895575,143.77,143.73,6.95748973]
[1750900911485,5.18549318,143.76,143.73,6.95748973]
[1750900911679,5.65895575,143.77,143.73,6.95748973]
[1750900911862,5.1853916,143.76,143.73,6.95748973]
[1750900912062,5.65895575,143.76,143.73,6.95748973]
[1750900913191,178.56,143.79,143.75,6.95652173]
[1750900913474,0.04,143.8,143.78,18.64964886]
[1750900913680,0.04,143.8,143.79,54.59922775]
[1750900913884,0.04,143.8,143.79,54.74138932]
[1750900915385,0.04,143.8,143.79,61.69597586]
[1750900916104,0.04,143.8,143.79,55.6105354]
[1750900916579,5.65895575,143.83,143.8,18.64964886]
[1750900916762,5.65895575,143.82,143.79,35.29458654]
[1750900917573,5.65895575,143.83,143.79,40.95354229]
[1750900918589,5.65895575,143.85,143.8,24.30860461]
[1750900918799,178.15895575,143.86,143.82,5.65895575]
[1750900919588,172.5,143.86,143.83,6.95265243]
[1750900921385,178.15895575,143.86,143.83,6.95265243]
[1750900922598,146.5,143.86,143.83,12.61160818]
[1750900922780,146.5,143.86,143.85,5.65895575]
[1750900922971,6.06,143.87,143.85,5.65895575]
[1750900923365,146.54,143.89,143.86,5.65895575]
[1750900923589,146.54,143.89,143.88,5.65895575]
[1750900923590,0.04,143.89,143.88,5.65895575]
[1750900924004,0.04,143.89,143.87,5.65895575]
[1750900924170,0.04,143.89,143.88,25.81540461]
[1750900924371,0.04,143.89,143.88,54.21540461]
[1750900924608,0.04,143.89,143.88,61.44996405]
[1750900925606,0.04,143.89,143.88,61.59212562]
[1750900926207,0.04,143.91,143.89,19.07613357]
[1750900926419,0.04,143.91,143.9,24.59292775]
[1750900926583,0.04,143.99,143.94,18.64964886]
[1750900926785,0.04,143.99,143.96,5.65895575]
[1750900926976,0.04,143.99,143.95,5.65895575]
[1750900927726,5.65895575,143.98,143.92,28.46]
[1750900928003,26.0,143.97,143.92,28.46]
[1750900928207,5.65895575,143.95,143.92,18.64964886]
[1750900929003,5.65895575,143.95,143.92,25.59784297]
[1750900929503,5.65895575,143.96,143.92,25.59784297]
[1750900930412,5.65895575,143.95,143.91,5.65895575]
[1750900932313,5.65895575,143.96,143.91,12.60734503]
[1750900932490,146.5,143.98,143.92,5.65895575]
[1750900932692,146.5,143.97,143.92,24.30860461]
[1750900932891,5.65895575,143.96,143.92,24.30860461]
[1750900933616,152.15895575,143.97,143.92,24.30860461]
[1750900934310,152.15895575,143.97,143.93,6.94782185]
[1750900935318,5.65895575,143.96,143.93,6.94782185]
[1750900935497,152.15895575,143.97,143.93,6.94782185]
[1750900936920,5.65895575,143.94,143.89,28.46]
[1750900937217,5.65895575,143.91,143.88,6.95014463]
[1750900937915,5.65895575,143.92,143.88,12.60910038]
[1750900941694,152.15895575,143.93,143.88,12.60910038]
[1750900943018,146.5,143.93,143.88,12.60910038]
[1750900943215,152.15895575,143.93,143.88,12.60910038]
[1750900944526,5.65895575,143.92,143.88,12.60910038]
[1750900945322,5.65895575,143.92,143.88,6.95014463]
[1750900945511,5.65895575,143.91,143.88,6.95014463]
[1750900948224,5.65895575,143.91,143.87,31.25914647]
[1750900950629,5.65895575,143.91,143.87,25.60019072]
[1750900950826,5.65895575,143.9,143.87,25.60019072]
[1750900951023,5.65895575,143.89,143.85,6.95168578]
[1750900951334,5.65895575,143.89,143.86,18.64964886]
[1750900952922,5.65895575,143.9,143.86,25.60052947]
[1750900956742,5.65895575,143.89,143.86,25.60052947]
[1750900958739,5.65895575,143.9,143.86,25.60052947]
[1750900959242,10.78431695,143.9,143.86,25.60052947]
[1750900959542,5.65895575,143.89,143.86,25.60052947]
[1750900961426,10.78431695,143.9,143.86,25.60052947]
[1750900961624,5.1253612,143.92,143.86,31.25948522]
[1750900961829,5.1253612,143.91,143.87,5.65895575]
[1750900962946,10.78431695,143.91,143.87,5.65895575]
[1750900963246,5.65895575,143.91,143.88,6.9502363]
[1750900966886,5.65895575,143.91,143.87,6.95071939]
[1750900967527,10.82926971,143.9,143.87,6.95071939]
[1750900967724,5.65895575,143.9,143.87,6.95071939]
[1750900970772,10.83127432,143.9,143.87,6.95071939]
[1750900970944,5.65895575,143.9,143.87,6.95071939]
[1750900971440,10.83127432,143.9,143.87,6.95071939]
[1750900971642,5.65895575,143.9,143.87,6.95071939]
[1750900972275,10.83127432,143.9,143.87,6.95071939]
[1750900972465,5.65895575,143.9,143.87,6.95071939]
[1750900974281,5.65895575,143.89,143.86,25.60067127]
[1750900974562,5.65895575,143.88,143.85,6.95162427]
[1750900975152,5.65895575,143.87,143.84,27.22228467]
[1750900980543,10.84010781,143.86,143.83,6.95255633]
[1750900980743,5.65895575,143.85,143.82,6.97298922]
[1750900980954,5.65895575,143.83,143.82,0.02]
[1750900981670,10.83902281,143.83,143.82,0.02]
[1750900984377,26.0,143.83,143.82,0.02]
[1750900986084,31.65895575,143.83,143.82,0.02]
[1750900988590,26.0,143.83,143.82,0.02]
[1750900988790,31.65895575,143.83,143.82,0.02]
[1750900991890,36.82146053,143.83,143.82,0.02]
[1750900993173,31.65895575,143.83,143.82,0.02]
[1750900995172,36.52581245,143.83,143.82,0.02]
[1750900995368,36.96136706,143.83,143.82,0.02]
[1750900995568,36.96136706,143.83,143.81,0.02]
[1750900995569,0.14216157,143.82,143.81,0.02]
[1750900995789,0.14216157,143.82,143.78,0.02]
[1750900995790,26.0,143.79,143.78,0.02]
[1750900996072,31.65895575,143.79,143.78,0.02]
[1750900997090,36.81920549,143.79,143.78,0.02]
[1750900997276,31.65895575,143.79,143.78,0.02]
[1750900999609,31.80111732,143.79,143.78,0.02]
[1750900999810,0.14216157,143.78,143.77,0.02]
[1750901000099,31.80111732,143.78,143.77,0.02]
[1750901000323,36.66966649,143.78,143.77,0.02]
[1750901000478,42.61294538,143.78,143.77,0.02]
[1750901000674,47.75114092,143.78,143.77,0.02]
[1750901001100,146.64216157,143.77,143.7,6.97876496]
[1750901001329,158.24439621,143.77,143.7,0.02]
[1750901001777,163.11328401,143.77,143.7,0.02]
[1750901003107,158.24439621,143.77,143.7,0.02]
[1750901004703,152.30111732,143.77,143.7,0.02]
[1750901004906,146.5,143.77,143.7,0.02]
[1750901005086,5.65895575,143.77,143.72,1.6493]
[1750901005488,31.65895575,143.77,143.72,1.6493]
[1750901006204,31.65895575,143.77,143.73,6.95748973]
[1750901011125,6.04,143.81,143.75,5.65895575]
[1750901011410,5.65895575,143.8,143.76,5.67895575]
[1750901011782,5.65895575,143.8,143.76,0.02]
[1750901011987,5.65895575,143.78,143.76,0.02]
[1750901014397,5.65895575,143.79,143.76,0.02]
[1750901015311,146.5,143.8,143.76,5.67895575]
[1750901015793,146.5,143.8,143.76,11.81095575]
[1750901017219,146.5,143.8,143.77,6.955554]
[1750901017422,5.65895575,143.79,143.77,6.955554]
[1750901019403,152.15895575,143.8,143.77,6.955554]
[1750901022109,5.65895575,143.78,143.77,6.955554]
[1750901022707,5.65895575,143.79,143.77,6.955554]
[1750901023925,5.65895575,143.79,143.76,0.02]
[1750901032815,146.5,143.8,143.76,24.32860461]
[1750901033628,32.04,143.81,143.78,24.30860461]
[1750901033833,6.04,143.81,143.78,24.30860461]
[1750901035026,6.04,143.81,143.78,18.64964886]
[1750901035214,11.69895575,143.81,143.78,18.64964886]
[1750901035418,5.65895575,143.79,143.77,6.955554]
[1750901035725,5.65895575,143.79,143.76,6.97603784]
[1750901042133,152.15895575,143.8,143.76,6.97603784]
[1750901042322,146.5,143.8,143.76,12.63499359]
[1750901042741,146.5,143.8,143.77,5.65895575]
[1750901043424,152.15895575,143.8,143.76,12.63499359]
[1750901046424,152.15895575,143.8,143.76,6.97603784]
[1750901046747,152.15895575,143.8,143.76,12.63499359]
[1750901049747,146.5,143.8,143.79,24.30860461]
[1750901050125,0.04,143.85,143.79,24.30860461]
[1750901050346,0.04,143.85,143.81,5.65895575]
[1750901050531,0.04,143.85,143.83,6.95265243]
[1750901050733,0.04,143.85,143.83,12.61160818]
[1750901051246,0.04,143.85,143.83,6.95265243]
[1750901054834,10.82654135,143.84,143.79,25.60378189]
[1750901055036,5.65895575,143.83,143.79,25.60378189]
[1750901055237,5.65895575,143.83,143.79,31.26273764]
[1750901055453,5.65895575,143.82,143.79,25.60378189]
[1750901055655,5.65895575,143.83,143.79,25.60378189]
[1750901055960,10.82725619,143.83,143.79,25.60378189]
[1750901056157,5.65895575,143.83,143.79,25.60378189]
[1750901056355,10.82725619,143.83,143.79,25.60378189]
[1750901056573,5.65895575,143.83,143.79,25.60378189]
[1750901056764,10.82725619,143.83,143.79,25.60378189]
[1750901057068,5.65895575,143.83,143.79,25.60378189]
[1750901057237,10.82725619,143.83,143.79,25.60378189]
[1750901057438,5.65895575,143.83,143.79,25.60378189]
[1750901057653,10.82725619,143.83,143.79,25.60378189]
[1750901057858,5.65895575,143.83,143.79,25.60378189]
[1750901058060,10.82725619,143.83,143.79,25.60378189]
[1750901058247,5.65895575,143.83,143.79,25.60378189]
[1750901058559,10.82725619,143.83,143.79,25.60378189]
[1750901058761,5.65895575,143.83,143.79,25.60378189]
[1750901058975,5.65895575,143.81,143.79,18.64964886]
[1750901059754,5.65895575,143.81,143.78,6.95491459]
[1750901063368,5.65895575,143.82,143.78,6.95491459]
[1750901063546,10.82807285,143.82,143.78,6.95491459]
[1750901063749,5.65895575,143.82,143.78,6.95491459]
[1750901063948,10.82807285,143.82,143.78,6.95491459]
[1750901064150,5.65895575,143.82,143.78,6.95491459]
[1750901064446,10.82807285,143.82,143.78,6.95491459]
[1750901064773,5.65895575,143.82,143.78,6.95491459]
[1750901064955,5.1691171,143.82,143.8,6.95410292]
[1750901065151,5.1691171,143.83,143.8,12.61305867]
[1750901065370,5.1691171,143.83,143.8,6.95410292]
[1750901065750,10.82807285,143.83,143.8,6.95410292]
[1750901066156,5.1691171,143.83,143.8,6.95410292]
[1750901066372,10.82807285,143.83,143.8,6.95410292]
[1750901067859,5.1691171,143.83,143.8,12.61305867]
[1750901068171,152.15895575,143.84,143.8,12.61305867]
[1750901069071,152.15895575,143.84,143.82,6.95313586]
[1750901070373,146.5,143.84,143.82,12.61209161]
[1750901070748,0.04,143.85,143.83,18.64964886]
[1750901072063,0.04,143.85,143.84,6.95216907]
[1750901078774,5.69895575,143.85,143.81,28.3]
[1750901078974,5.65895575,143.84,143.82,6.95299997]
[1750901079182,5.20749385,143.85,143.82,6.95299997]
[1750901079377,5.65895575,143.84,143.81,35.25350006]
[1750901079563,5.65895575,143.83,143.81,28.3]
[1750901079761,5.65895575,143.84,143.81,35.25355416]
[1750901080362,10.82578165,143.84,143.81,35.25355416]
[1750901080566,5.65895575,143.83,143.81,35.25355416]
[1750901081885,5.65895575,143.83,143.81,6.95355416]
[1750901084563,5.65895575,143.82,143.8,25.60355665]
[1750901084886,5.65895575,143.83,143.8,25.60355665]
[1750901085584,5.17097388,143.84,143.8,25.60355665]
[1750901085786,5.65895575,143.83,143.8,25.60355665]
[1750901086764,10.83138116,143.84,143.8,25.60355665]
[1750901088294,5.65895575,143.84,143.8,25.60355665]
[1750901089689,10.83399337,143.83,143.8,25.60355665]
[1750901089983,5.65895575,143.83,143.8,25.60355665]
[1750901090191,10.83399337,143.83,143.8,25.60355665]
[1750901090385,5.65895575,143.82,143.79,18.64964886]
[1750901090570,5.65895575,143.8,143.77,18.64964886]
[1750901090889,5.65895575,143.79,143.77,18.64964886]
[1750901092092,5.65895575,143.78,143.76,18.66964886]
[1750901093999,5.65895575,143.78,143.76,25.62562702]
[1750901095875,5.65895575,143.78,143.76,0.02]
[1750901096484,5.65895575,143.78,143.75,6.47621435]
[1750901097468,5.17174662,143.81,143.76,18.64964886]
[1750901097675,10.83070237,143.8,143.76,24.30860461]
[1750901097869,5.65895575,143.8,143.76,24.30860461]
[1750901098908,5.65895575,143.8,143.76,18.64964886]
[1750901099102,10.82989174,143.8,143.76,24.30860461]
[1750901099305,5.65895575,143.8,143.76,24.30860461]
[1750901099691,10.82971654,143.8,143.77,6.955554]
[1750901099892,5.65895575,143.8,143.77,6.955554]
[1750901100602,5.17092224,143.81,143.78,24.30860461]
[1750901100603,5.17072461,143.81,143.78,24.30860461]
[1750901101112,146.5,143.82,143.78,24.30860461]
[1750901101611,6.04,143.83,143.8,12.61305867]
[1750901101820,146.54,143.85,143.82,18.64964886]
[1750901101976,146.54,143.85,143.82,24.30860461]
[1750901102180,146.54,143.85,143.82,18.64964886]
[1750901102405,146.54,143.85,143.82,24.30860461]
[1750901103309,146.54,143.85,143.83,6.95265243]
[1750901114624,0.04,143.85,143.84,24.30860461]
[1750901115517,0.04,143.85,143.84,54.47702775]
[1750901116598,0.04,143.85,143.84,61.42919682]
[1750901116796,0.04,143.85,143.84,61.57135839]
[1750901117058,0.04,143.85,143.84,61.42919682]
[1750901117209,0.04,143.85,143.84,55.48591793]
[1750901117402,0.04,143.85,143.84,53.88181793]
[1750901121108,5.69895575,143.85,143.84,35.23216907]
[1750901121425,5.69895575,143.85,143.84,6.95216907]
[1750901121825,5.69895575,143.85,143.83,6.95253003]
[1750901122623,0.04,143.85,143.84,18.64964886]
[1750901123310,0.04,143.85,143.84,25.60181793]
[1750901128332,5.69895575,143.85,143.82,28.28]
[1750901128530,5.65895575,143.83,143.79,53.8842354]
[1750901128732,5.65895575,143.82,143.79,25.6042354]
[1750901128943,5.65895575,143.82,143.79,53.8842354]
[1750901129639,5.65895575,143.83,143.79,53.8842354]
[1750901130838,146.54,143.85,143.8,0.28432314]
[1750901131141,146.54,143.85,143.82,18.64964886]
[1750901132435,5.65895575,143.83,143.8,18.64964886]
[1750901132617,5.65895575,143.81,143.79,6.95458654]
[1750901132827,5.65895575,143.8,143.78,6.95495259]
[1750901134940,5.65895575,143.8,143.76,35.23603784]
[1750901135817,5.65895575,143.81,143.77,18.64964886]
[1750901136139,5.65895575,143.81,143.77,24.30860461]
[1750901136314,5.65895575,143.81,143.77,18.64964886]
[1750901136746,5.65895575,143.81,143.78,6.95507024]
[1750901137242,5.65895575,143.8,143.78,6.95507024]
[1750901138546,5.65895575,143.79,143.78,6.95507024]
[1750901139041,5.65895575,143.79,143.77,6.95539432]
[1750901139248,5.65895575,143.78,143.77,6.95539432]
[1750901139716,5.65895575,143.79,143.77,6.95539432]
[1750901140344,5.65895575,143.8,143.77,6.95539432]
[1750901142842,5.65895575,143.81,143.78,18.64964886]
[1750901143747,5.65895575,143.81,143.79,6.95458654]
[1750901145135,152.15895575,143.82,143.79,6.95458654]
[1750901146938,152.15895575,143.82,143.79,35.23458654]
[1750901148133,146.5,143.82,143.8,18.64964886]
[1750901148347,5.65895575,143.84,143.8,18.64964886]
[1750901148541,10.83232329,143.84,143.8,18.64964886]
[1750901148736,5.65895575,143.84,143.8,18.64964886]
[1750901149949,5.65895575,143.84,143.81,6.95361935]
[1750901151360,10.83287293,143.84,143.81,6.95361935]
[1750901151854,5.65895575,143.84,143.81,6.95361935]
[1750901152548,5.65895575,143.82,143.81,6.95361935]
[1750901153256,5.65895575,143.83,143.81,6.95361935]
[1750901153952,5.65895575,143.83,143.8,6.95410292]
[1750901157173,5.1739932,143.84,143.81,18.64964886]
[1750901157456,146.54,143.85,143.81,18.64964886]
[1750901157644,5.65895575,143.84,143.81,18.64964886]
[1750901158455,5.65895575,143.84,143.82,6.95313586]
[1750901159845,146.54,143.85,143.82,6.95313586]
[1750901160143,146.54,143.85,143.82,29.99493127]
[1750901160365,0.04,143.85,143.84,24.30860461]
[1750901161765,0.04,143.85,143.84,31.26077368]
[1750901161943,0.04,143.85,143.84,31.54509682]
[1750901163771,0.04,143.85,143.84,59.82509682]
[1750901166080,0.04,143.85,143.84,41.17544796]
[1750901168373,0.04,143.85,143.84,53.88181793]
[1750901169046,0.04,143.85,143.84,59.96725839]
[1750901170076,0.04,143.85,143.84,41.31760953]
[1750901171960,0.04,143.85,143.84,59.96725839]
[1750901172854,0.04,143.88,143.86,0.28432314]
[1750901173057,0.04,143.88,143.87,33.93895575]
[1750901174055,0.04,143.88,143.87,28.28]
[1750901174254,0.04,143.88,143.87,33.93895575]
[1750901174677,0.04,143.88,143.87,59.96580871]
[1750901174954,0.04,143.9,143.89,0.28432314]
[1750901175155,0.04,143.9,143.89,52.87292775]
[1750901175554,0.04,143.9,143.89,53.01508932]
[1750901176670,0.04,143.9,143.89,59.9648426]
[1750901178686,0.04,143.9,143.89,61.6233426]
[1750901179052,0.04,143.94,143.91,0.14216157]
[1750901179270,0.04,143.94,143.93,24.30860461]
[1750901180762,0.04,143.94,143.93,31.25642646]
[1750901181974,0.04,143.94,143.93,39.74811117]
[1750901182884,0.04,143.94,143.93,33.29421117]
[1750901183657,1e-08,143.97,143.93,50.66376581]
[1750901183965,5.65895575,143.98,143.94,28.3]
[1750901184164,5.69895575,143.99,143.95,24.30860461]
[1750901184371,5.69895575,143.99,143.97,18.64964886]
[1750901184683,5.65895575,143.98,143.95,46.94964886]
[1750901184978,5.69895575,143.99,143.96,6.94637399]
[1750901186372,5.65895575,143.98,143.96,6.94637399]
[1750901187393,5.69895575,143.99,143.96,6.94637399]
[1750901189988,0.04,143.99,143.97,18.64964886]
[1750901190375,0.04,143.99,143.97,46.94964886]
[1750901191696,0.04,143.99,143.98,25.59505794]
[1750901192871,0.04,143.99,143.98,31.53833683]
[1750901194970,0.04,143.99,143.98,25.87938108]
[1750901196283,0.04,143.99,143.98,31.53833683]
[1750901197489,0.04,143.99,143.98,31.6804984]
[1750901199103,0.04,143.99,143.98,25.87938108]
[1750901201592,0.04,143.99,143.98,31.53833683]
[1750901201791,0.04,143.99,143.98,31.6804984]
[1750901201996,0.04,143.99,143.98,32.3750393]
[1750901202192,0.04,143.99,143.98,31.6804984]
[1750901202400,0.04,144.01,144.0,0.14216157]
[1750901202584,0.04,144.01,144.0,52.73076618]
[1750901203595,0.04,144.01,144.0,59.95953376]
[1750901207505,0.04,144.01,144.0,54.15841644]
[1750901209499,0.04,144.01,144.0,53.8740933]
[1750901211596,0.04,144.01,144.0,25.5940933]
[1750901214483,0.04,144.01,144.0,25.87841644]
[1750901216122,0.04,144.01,144.0,31.53737219]
[1750901216503,0.04,144.01,144.0,25.87841644]
[1750901218096,0.04,144.01,144.0,31.53737219]
[1750901218301,0.04,144.01,144.0,31.67953376]
[1750901221633,0.04,144.01,144.0,38.03293395]
[1750901222162,0.04,144.05,144.01,19.07613357]
[1750901222327,0.04,144.05,144.04,24.73508932]
[1750901222510,0.04,144.05,144.04,52.99508932]
[1750901223205,0.04,144.05,144.04,59.93760528]
[1750901229020,0.04,144.05,144.04,6.94251596]
[1750901229219,5.69895575,144.05,144.03,35.30282716]
[1750901229625,5.69895575,144.05,144.04,18.64964886]
[1750901229932,5.69895575,144.05,144.03,28.36]
[1750901230133,5.65895575,144.04,144.02,28.36]
[1750901230310,5.65895575,144.03,143.99,17.36118591]
[1750901230634,5.69895575,144.05,144.01,18.64964886]
[1750901230937,0.04,144.05,144.03,24.30860461]
[1750901231140,0.04,144.05,144.04,28.4]
[1750901231352,0.04,144.05,144.04,47.333972]
[1750901232156,0.04,144.05,144.04,54.27648796]
[1750901236055,0.04,144.05,144.04,53.99216482]
[1750901236366,5.69895575,144.05,144.04,53.99216482]
[1750901238369,0.04,144.05,144.04,53.99216482]
[1750901246888,0.04,144.05,143.98,6.04]
[1750901246889,12.52880862,144.05,143.97,6.9458915]
[1750901247206,5.65895575,143.98,143.96,6.94620116]
[1750901247358,5.65895575,143.97,143.95,6.96677603]
[1750901247549,5.65895575,143.96,143.95,6.96677603]
[1750901247750,5.65895575,143.97,143.95,6.96677603]
[1750901248968,5.65895575,143.97,143.95,35.34677603]
[1750901249481,5.65895575,143.97,143.96,18.64964886]
[1750901249778,5.17413249,144.0,143.96,18.64964886]
[1750901249779,5.65895575,143.99,143.96,18.64964886]
[1750901249975,5.65895575,143.99,143.97,28.38]
[1750901250282,5.17413249,144.0,143.97,28.38]
[1750901250283,5.65895575,143.98,143.97,28.38]
[1750901250869,5.65895575,143.98,143.97,35.3258915]
[1750901252078,6.1,144.02,143.97,52.69062026]
[1750901252263,5.65895575,143.99,143.97,52.69062026]
[1750901252470,5.65895575,144.0,143.97,52.69062026]
[1750901252687,5.65895575,143.99,143.97,52.69062026]
[1750901253185,11.26923833,144.02,143.97,52.69062026]
[1750901253380,5.65895575,143.99,143.97,52.69062026]
[1750901259504,5.65895575,144.0,143.97,52.69062026]
[1750901260503,6.1,144.02,143.97,52.69062026]
[1750901260701,5.65895575,144.0,143.97,52.69062026]
[1750901262699,6.1,144.02,143.97,52.69062026]
[1750901262904,5.65895575,144.0,143.97,52.69062026]
[1750901263408,5.65895575,144.01,143.99,6.94492673]
[1750901264089,5.65895575,144.01,143.99,35.28492673]
[1750901264401,27.6906,144.05,144.0,18.64964886]
[1750901264587,27.6906,144.05,144.01,28.34]
[1750901264588,5.69895575,144.05,144.01,28.34]
[1750901264779,5.69895575,144.05,144.02,18.64964886]
[1750901265099,0.04,144.05,144.03,28.34]
[1750901265414,0.04,144.05,144.02,46.98964886]
[1750901265703,0.04,144.05,144.03,6.94299798]
[1750901266279,5.69895575,144.05,144.03,6.94299798]
[1750901269310,0.04,144.05,144.03,6.94299798]
[1750901269490,0.04,144.05,144.04,46.98964886]
[1750901271498,0.04,144.05,144.04,53.93216482]
[1750901277196,0.04,144.05,144.04,54.21648796]
[1750901280118,0.04,144.05,144.04,60.01760528]
[1750901290322,0.04,144.1,144.06,26.0]
[1750901290523,0.04,144.1,144.08,24.30860461]
[1750901290743,0.04,144.1,144.09,28.28]
[1750901291354,0.04,144.1,144.09,52.87292775]
[1750901291940,0.04,144.1,144.09,53.01508932]
[1750901292339,0.04,144.1,144.09,59.95519619]
[1750901296336,0.04,144.1,144.09,68.25520687]
[1750901296523,0.04,144.15,144.1,51.53823357]
[1750901296849,0.04,144.15,144.14,24.45076618]
[1750901297026,0.04,144.15,144.14,52.75076618]
[1750901297438,0.04,144.15,144.14,59.68846563]
[1750901302454,0.04,144.15,144.14,59.97278877]
[1750901303059,0.04,144.15,144.14,61.60818877]
[1750901308671,0.04,144.15,144.14,62.30195871]
[1750901310284,0.04,144.16,144.15,19.07613357]
[1750901310484,0.04,144.21,144.15,30.77508932]
[1750901310687,0.04,144.21,144.19,24.45076618]
[1750901310975,0.04,144.21,144.19,52.69076618]
[1750901311388,0.04,144.21,144.19,47.03181043]
[1750901312379,0.04,144.21,144.19,53.96710413]
[1750901313162,0.04,144.21,144.19,59.91038302]
[1750901313369,1e-08,144.21,144.2,18.933972]
[1750901313576,0.04,144.22,144.21,0.14216157]
[1750901313777,0.04,144.22,144.21,47.03181043]
[1750901314492,0.04,144.22,144.21,53.9661423]
[1750901315996,0.04,144.22,144.21,54.25046544]
[1750901316299,0.02,144.24,144.23,0.14216157]
[1750901316485,0.04,144.25,144.24,30.59733357]
[1750901316664,6.3117,144.34,144.27,19.07613357]
[1750901316871,5.65895575,144.32,144.3,0.28432314]
[1750901317184,5.65895575,144.31,144.27,28.44216157]
[1750901317387,5.12604015,144.33,144.28,18.64964886]
[1750901317700,32.3117,144.34,144.3,18.64964886]
[1750901317870,5.65895575,144.32,144.3,18.64964886]
[1750901318409,32.3117,144.34,144.3,18.64964886]
[1750901318689,5.65895575,144.32,144.3,18.64964886]
[1750901318863,6.3117,144.34,144.3,25.57964621]
[1750901319062,5.65895575,144.33,144.32,18.64964886]
[1750901319487,1.6115,144.36,144.32,18.64964886]
[1750901319791,5.11565985,144.39,144.35,0.28432314]
[1750901320094,5.11358319,144.44,144.39,18.64964886]
[1750901320293,5.65895575,144.46,144.41,18.79181043]
[1750901320495,7.9438,144.47,144.43,18.64964886]
[1750901320665,26.0,144.46,144.43,0.28432314]
[1750901320864,5.65895575,144.44,144.43,0.28432314]
[1750901321061,5.65895575,144.44,144.42,18.64964886]
[1750901321062,5.65895575,144.44,144.41,18.64964886]
[1750901321296,5.65895575,144.42,144.36,6.92712662]
[1750901321485,5.65895575,144.39,144.37,18.64964886]
[1750901321689,6.92,144.46,144.37,18.64964886]
[1750901322195,7.4438,144.47,144.41,18.64964886]
[1750901322490,7.4438,144.47,144.44,18.64964886]
[1750901322689,5.65895575,144.47,144.44,18.64964886]
[1750901322996,0.04,144.49,144.44,18.64964886]
[1750901323176,0.04,144.49,144.39,6.92568737]
[1750901323496,26.0,144.48,144.41,0.28432314]
[1750901323695,0.04,144.49,144.46,18.64964886]
[1750901323884,0.04,144.49,144.46,54.34860461]
[1750901324380,0.04,144.49,144.46,48.68964886]
[1750901324578,0.04,144.49,144.48,18.64964886]
[1750901324777,0.04,144.49,144.46,6.92225161]
[1750901324969,5.69895575,144.49,144.46,6.92225161]
[1750901325169,0.04,144.49,144.47,19.07613357]
[1750901325464,1.0281854,144.52,144.48,5.65895575]
[1750901325766,1.0281854,144.52,144.47,24.73508932]
[1750901325976,6.68714115,144.52,144.47,19.07613357]
[1750901326195,1.0281854,144.52,144.49,0.28432314]
[1750901326490,1.0281854,144.52,144.47,18.79181043]
[1750901326674,5.65895575,144.48,144.43,30.32]
[1750901326877,5.65895575,144.46,144.45,18.64964886]
[1750901327293,1.0281854,144.52,144.44,25.5729388]
[1750901327506,1.0281854,144.52,144.44,18.64964886]
[1750901327803,1.0281854,144.52,144.45,0.28432314]
[1750901327993,5.65895575,144.48,144.45,0.28432314]
[1750901328195,1.0281854,144.52,144.45,0.28432314]
[1750901328391,5.65895575,144.48,144.44,18.64964886]
[1750901328711,5.65895575,144.46,144.45,6.92281066]
[1750901329009,5.65895575,144.47,144.45,6.92281066]
[1750901329201,1.0281854,144.52,144.47,18.64964886]
[1750901329407,1.0281854,144.52,144.49,18.933972]
[1750901329610,1.0281854,144.52,144.47,19.07613357]
[1750901329783,5.65895575,144.51,144.47,24.73508932]
[1750901330384,1.0281854,144.52,144.47,24.73508932]
[1750901330385,6.68714115,144.52,144.47,19.07613357]
[1750901330610,1.0281854,144.52,144.48,6.9213732]
[1750901330789,1.0281854,144.52,144.51,5.65895575]
[1750901330983,1.0281854,144.52,144.51,5.80111732]
[1750901331304,1.0281854,144.52,144.51,18.79181043]
[1750901331508,1.0281854,144.52,144.51,24.45076618]